Cogmind - Beta 10.1 @@@ ROGUE MODE // 2020.10.23 @ 23:26:27 Player: Andru7428 Result: Escaped! Performance ------------- Evolutions (9) 4500 Regions Visited (26) 5200 Robots Destroyed (175) 875 Value Destroyed (7155) 7155 Prototype IDs (74) 1480 Alien Tech Used (0) 0 Bonus (6997) 6997 TOTAL SCORE: 26207 Bonus ------- High Alert Combat Kills 164 Follower Combat Kills 2048 Entered Garrisons 400 Used RIF Installer 1000 Network Hubs Disabled 800 Aligned with FarCom 300 Built Enhanced Grunts 300 A7 Reached Mainframe 300 Win 3000 Friendly Fire -1315 Cogmind --------- Core Integrity 1528/1600 Matter 300/300 Energy 578/760 System Corruption 1% Temperature Cool (2) Movement Flying (39) Location To Epsilon Eridani Parts ------- > --- POWER (2) -------- Micro Fission Core Light Quantum Reactor > --- PROPULSION (5) --- Flying Fortress v7 Improved Q-thruster > --- UTILITY (15) ----- Large Storage Unit Large Storage Unit Energy Well Experimental Melee Analysis Suite Nanoactuators Advanced Force Booster Advanced Reaction Control System Experimental Propulsion Shielding Experimental Weapon Shielding Advanced Hacking Suite Advanced Hacking Suite Advanced System Shield Relay Coupler [Programmer] (35) > --- WEAPON (3) ------- Enhanced Force Lance Enhanced Force Lance CR-A16's Behemoth Slayer > --- INVENTORY (16) --- Q-thruster Quantum Shading Machine Long-range Terrain Scanner Advanced Armor Integrity Analyzer Advanced ECM Suite Improved Cloaking Device Improved Weapon Shielding Point Defense Array Relay Coupler [Programmer] (66) System Backup Module Nova Cannon Long-range Missile Launcher Improved Remote Datajack Peak State ------------ > --- POWER ------------ Micro Fission Core Light Quantum Reactor > --- PROPULSION ------- Flying Fortress v7 Improved Q-thruster > --- UTILITY ---------- Advanced Heat Sink Large Storage Unit Large Storage Unit Energy Well Experimental Melee Analysis Suite Nanoactuators Advanced Force Booster Advanced Reaction Control System Experimental Propulsion Shielding Experimental Weapon Shielding Advanced Hacking Suite Advanced Hacking Suite Experimental Hacking Suite Advanced System Shield Relay Coupler [Programmer] > --- WEAPON ----------- Enhanced Force Lance Enhanced Force Lance CR-A16's Behemoth Slayer > --- INVENTORY -------- Q-thruster Quantum Shading Machine Long-range Terrain Scanner Advanced Armor Integrity Analyzer Advanced ECM Suite Improved Cloaking Device Improved Weapon Shielding Point Defense Array Relay Coupler [Programmer] System Backup Module Nova Cannon Long-range Missile Launcher Improved Remote Datajack [Rating: 180] Favorites ----------- Power Micro Fission Core Engine Light Deuterium Engine Power Core Micro Fission Core Reactor Cold Fusion Reactor Propulsion Armored Treads Treads Armored Treads Leg Carbon-fiber Leg Hover Unit Aerolev Unit Flight Unit Flying Fortress v7 Utility Large Storage Unit Device Long-range Terrain Scanner Storage Large Storage Unit Processor Advanced Terrain Scan Processor Hackware Improved Hacking Suite Protection Layered Medium Armor Plating Weapon CR-A16's Behemoth Slayer Energy Gun EM Shotgun Energy Cannon Cooled Plasma Cannon Ballistic Gun Enhanced Autogun Ballistic Cannon Flak Cannon Launcher Missile Launcher Special Weapon Improved Remote Datajack Impact Weapon Heavy Hammer Slashing Weapon Chainsword Piercing Weapon CR-A16's Behemoth Slayer Build | -11 -10 -10 -10 -9 -8 -8 -7 -7 -7 -7 -6 -6 -6 -6 -6 -6 -6 -5 -5 -5 -5 -5 -4 -3 -2 -1 ------- Run | Scr Mat Min Exi Min Mat Sto Fac Low Low Zio Pro Fac Was Fac Gar Fac Gar Fac Ext Cet Arc Hub Fac Res Res Acc Slots Evolved 18 | . . . . . 4 . 2 . . . . 2 . . . . . 2 . . . . 2 2 2 2 Power 1 | . . . . . . . . . . . . . . . . . . . . . . . . 1 . . Propulsion 3 | . . . . . 1 . 1 . . . . . . . . . . . . . . . . 1 . . Utility 13 | . . . . . 3 . 1 . . . . 2 . . . . . 2 . . . . 2 . 1 2 Weapon 1 | . . . . . . . . . . . . . . . . . . . . . . . . . 1 . Parts Attached 254 | 6 7 5 . 3 14 25 21 1 13 2 7 27 1 9 10 5 . 8 8 4 1 7 19 17 18 16 Power 15 | 1 . 2 . . . 2 2 . 2 . . 2 . . . . . 1 . . . 1 . 1 1 . Engine 9 | 1 . 2 . . . 2 2 . 1 . . 1 . . . . . . . . . . . . . . Core 4 | . . . . . . . . . 1 . . . . . . . . 1 . . . 1 . 1 . . Reactor 2 | . . . . . . . . . . . . 1 . . . . . . . . . . . . 1 . Propulsion 29 | 2 . 1 . . 1 7 1 1 7 1 1 3 . 1 . . . . . . . . . 2 1 . Treads 18 | 2 . 1 . . 1 5 1 1 5 . 1 1 . . . . . . . . . . . . . . Leg 3 | . . . . . . . . . 2 1 . . . . . . . . . . . . . . . . Wheel . | . . . . . . . . . . . . . . . . . . . . . . . . . . . Hover 1 | . . . . . . 1 . . . . . . . . . . . . . . . . . . . . Flight 7 | . . . . . . 1 . . . . . 2 . 1 . . . . . . . . . 2 1 . Utility 127 | 1 3 . . 2 7 4 7 . 2 1 1 14 1 8 4 5 . 6 5 2 . 6 14 13 11 10 Device 62 | . . . . . 2 3 4 . 1 . . 5 1 4 1 2 . 1 2 . . 4 6 12 7 7 Storage 7 | 1 2 . . 1 . . . . . . . 2 . . . . . . . . . . . . . 1 Processor 7 | . . . . . . . 2 . . . . 1 . 1 . 1 . 1 . . . . . . 1 . Hackware 16 | . . . . . . . . . . . . 5 . 1 . 1 . 1 1 . . . 4 . 2 1 Protection 35 | . 1 . . 1 5 1 1 . 1 1 1 1 . 2 3 1 . 3 2 2 . 2 4 1 1 1 Artifact . | . . . . . . . . . . . . . . . . . . . . . . . . . . . Weapon 83 | 2 4 2 . 1 6 12 11 . 2 . 5 8 . . 6 . . 1 3 2 1 . 5 1 5 6 Energy Gun 13 | 1 3 2 . . 3 2 2 . . . . . . . . . . . . . . . . . . . Energy Cannon 20 | . . . . . . 8 4 . . . . 1 . . 1 . . 1 . . . . 2 1 1 1 Ballistic Gun 10 | 1 . . . 1 3 1 . . 1 . 2 1 . . . . . . . . . . . . . . Ballistic Cannon 1 | . . . . . . . . . 1 . . . . . . . . . . . . . . . . . Launcher 12 | . . . . . . 1 1 . . . 2 2 . . 2 . . . 2 1 . . 1 . . . Special Weapon 3 | . . . . . . . . . . . . . . . . . . . . . . . 1 . . 2 Impact Weapon 1 | . 1 . . . . . . . . . . . . . . . . . . . . . . . . . Slashing Weapon 4 | . . . . . . . 4 . . . . . . . . . . . . . . . . . . . Piercing Weapon 19 | . . . . . . . . . . . 1 4 . . 3 . . . 1 1 1 . 1 . 4 3 Special Melee Weapon . | . . . . . . . . . . . . . . . . . . . . . . . . . . . Unidentified Prototypes 12 | . . . . . 1 8 . . . . . 2 . 1 . . . . . . . . . . . . Parts Lost 29 | . . 3 . 1 2 1 3 . 7 . 4 2 . . . . . . . 1 . . 1 1 1 2 Power 3 | . . . . . . . . . 2 . 1 . . . . . . . . . . . . . . . Propulsion 5 | . . 1 . . . . . . 2 . 2 . . . . . . . . . . . . . . . Utility 13 | . . . . . 1 . 2 . 1 . 1 2 . . . . . . . 1 . . 1 1 1 2 Weapon 8 | . . 2 . 1 1 1 1 . 2 . . . . . . . . . . . . . . . . . Highest Loss Streak 4 | . . 2 . 1 1 1 2 . 4 . 3 1 . . . . . . . 1 . . 1 1 1 2 Average Slot Usage (%) 89 | . 97 100 100 99 92 99 97 100 92 93 89 77 80 80 80 80 80 80 82 81 82 82 82 84 84 87 Engine 4 | . 14 14 14 14 9 8 7 7 4 . . . . . . . . . . . . . . . . . Core 2 | . . . . . . . . . 2 7 5 . . . . . . 4 5 5 5 5 5 9 5 4 Reactor 1 | . . . . . . . . . . . . 4 6 6 6 6 6 . . . . . . . 2 4 Treads 13 | . 28 28 28 28 27 27 29 30 26 23 22 . . . . . . . . . . . . . . . Flight 2 | . . . . . . . . . . . . 5 6 6 6 6 6 5 5 5 5 5 5 9 8 8 Device 8 | . . . . . 6 18 15 15 15 8 7 12 13 12 5 5 6 4 4 . . 4 4 4 12 17 Storage 15 | . 23 28 28 27 18 18 15 15 15 15 15 13 13 13 13 13 13 11 11 11 11 11 10 9 8 8 Processor 3 | . . . . . . . 5 7 7 1 . 5 6 6 6 6 6 5 5 5 5 5 5 4 6 7 Hackware 10 | . . . . . . . . . . . . 17 20 20 20 20 20 23 23 23 23 23 25 22 17 17 Protection 7 | . 2 . . . 14 9 7 7 2 13 14 1 . . 7 6 6 9 11 16 17 11 14 13 8 8 Energy Gun 4 | . 27 28 28 16 7 2 . 7 . . . . . . . . . . . . . . . . . . Energy Cannon 4 | . . . . . . 15 12 7 5 . . 3 6 6 5 6 6 5 5 5 5 5 5 4 3 3 Ballistic Gun 1 | . . . . 11 10 . . . 1 7 6 . . . . . . . . . . . . . . . Ballistic Cannon 1 | . . . . . . . . . 6 7 7 2 . . . . . . . . . . . . . . Piercing Weapon 2 | . . . . . . . . . . . . 5 6 6 4 6 6 5 4 1 5 5 5 4 8 8 Naked Turns . | . . . . . . . . . . . . . . . . . . . . . . . . . . . Heaviest Build 83 | 10 41 45 43 43 65 59 61 58 59 69 72 65 58 64 68 64 64 64 65 65 52 58 66 64 82 83 Greatest Support 88 | 40 40 40 40 40 60 60 80 80 80 80 70 72 72 72 72 72 72 72 72 72 72 72 72 83 88 88 Greatest Overweight (x) 19 | 1 1 1 1 1 1 1 . . . 1 1 19 . . . . . . . . . . . . . . Average Overweight (x) . | . . 1 1 . . . . . . . . . . . . . . . . . . . . . . . Largest Inventory Capacity 16 | 6 16 16 16 16 16 16 16 16 16 16 16 16 16 16 16 16 16 16 16 16 16 16 16 16 16 16 Average Capacity 15 | 5 12 16 16 15 16 16 16 16 16 16 16 16 16 16 16 16 16 16 16 16 16 16 16 16 16 16 Most Carried 16 | 4 10 16 16 16 16 16 16 16 16 16 16 16 16 16 16 16 16 16 16 16 15 16 16 16 16 15 Average Carried 15 | 2 7 15 15 15 14 15 15 16 15 15 15 15 16 15 16 15 15 15 15 15 15 15 14 15 15 13 Final Capacity 16 | 6 16 16 16 16 16 16 16 16 16 16 16 16 16 16 16 16 16 16 16 16 16 16 16 16 16 16 Final Carried 16 | 4 10 15 16 15 16 16 16 16 16 16 16 16 16 16 16 16 16 16 16 15 15 16 15 15 15 13 Class Distribution -------------------- 49% | Mutant 32% | Hacker-Scout 6% | Wizard-Scout 4% | Hacker-Mutant Dominant Class ---------------- Mutant | -10/Materials Mutant | -10/Mines Mutant | -10/Exiles Mutant | -9/Mines Mutant | -8/Materials Mutant | -8/Storage Mutant | -7/Factory Mutant | -7/Lower Caves Mutant | -7/Lower Caves Mutant | -7/Zion Mutant | -6/Proximity Caves Hacker-Scout | -6/Factory Hacker-Scout | -6/Waste Hacker-Scout | -6/Factory Hacker-Mutant | -6/Garrison Hacker-Scout | -6/Factory Hacker-Scout | -6/Garrison Hacker-Scout | -5/Factory Hacker-Scout | -5/Extension Hacker-Mutant | -5/Cetus Hacker-Mutant | -5/Archives Hacker-Scout | -5/Hub_04(d) Wizard-Scout | -4/Factory Wizard-Scout | -3/Research Hacker-Scout | -2/Research Hacker-Scout | -1/Access Resources | -11 -10 -10 -10 -9 -8 -8 -7 -7 -7 -7 -6 -6 -6 -6 -6 -6 -6 -5 -5 -5 -5 -5 -4 -3 -2 -1 ----------- Run | Scr Mat Min Exi Min Mat Sto Fac Low Low Zio Pro Fac Was Fac Gar Fac Gar Fac Ext Cet Arc Hub Fac Res Res Acc Matter Collected 3882 | 232 78 60 . 48 199 337 178 40 307 20 231 380 . 95 377 50 . 80 95 215 10 70 182 124 258 216 Remotely . | . . . . . . . . . . . . . . . . . . . . . . . . . . . Salvage Created 7852 | . 223 198 . 120 145 1001 1056 . 479 . 390 586 . 95 519 31 . 240 539 166 77 228 731 65 509 454 Parts 388 | . 14 8 . 5 5 44 63 . 11 . 19 26 . 1 14 4 . 18 35 13 4 14 43 4 22 21 Haulers Intercepted 9 | . . . . . . 2 1 . . . . 1 . 1 . . . 1 . . . . 1 . 1 1 Recyclers Shooed 5 | . . . . . . 3 . . . . . 2 . . . . . . . . . . . . . . Parts Field Recycled . | . . . . . . . . . . . . . . . . . . . . . . . . . . . Retrieved Matter . | . . . . . . . . . . . . . . . . . . . . . . . . . . . Parts Self-Destructed 24 | . . . . . . . . . 5 1 18 . . . . . . . . . . . . . . . Prevented 2 | . . . . . . . . . 2 . . . . . . . . . . . . . . . . . Kills | -11 -10 -10 -10 -9 -8 -8 -7 -7 -7 -7 -6 -6 -6 -6 -6 -6 -6 -5 -5 -5 -5 -5 -4 -3 -2 -1 ------- Run | Scr Mat Min Exi Min Mat Sto Fac Low Low Zio Pro Fac Was Fac Gar Fac Gar Fac Ext Cet Arc Hub Fac Res Res Acc Combat Hostiles Destroyed 133 | . 7 5 . 2 3 17 19 . 11 . 11 5 . . 10 . . 1 10 7 1 3 11 1 6 3 Melee 30 | . . . . . . . . . . . . . . . 4 . . 1 6 . . 3 6 1 6 3 Guns 21 | . 7 4 . 2 3 1 . . . . 2 2 . . . . . . . . . . . . . . Cannons 45 | . . . . . . 12 17 . 11 . 2 . . . . . . . 1 . 1 . 1 . . . AOE 35 | . . 1 . . . 4 2 . . . 6 3 . . 6 . . . 2 7 . . 4 . . . Classes Destroyed 15 | . 3 1 . 1 . 3 4 . 1 . 1 . . . . . . . . . . . 1 . . . Worker 2 | . . . . 1 . . 1 . . . . . . . . . . . . . . . . . . . Builder 1 | . . . . . . . 1 . . . . . . . . . . . . . . . . . . . Hauler 9 | . . . . . . 2 1 . . . . 1 . 1 . . . 1 . . . . 1 . 1 1 Recycler 7 | . . . . . . 3 1 . . . . 2 . . . . . . . . . . . . 1 . Watcher 19 | . 2 . . . . . . . . . . 4 . . 1 1 . 2 1 1 . 2 4 . 1 . Swarmer 42 | . 5 . . . . 4 3 . . . 6 3 . . . . . . 5 7 . . 4 . 5 . Grunt 43 | . 2 4 . 2 3 4 8 . 4 . 3 . . . 9 . . . 1 . . 1 1 . . 1 Brawler 3 | . . . . . . . 1 . 1 . 1 . . . . . . . . . . . . . . . Duelist 3 | . . . . . . . 1 . 1 . . . . . 1 . . . . . . . . . . . Sentry 18 | . . . . . . 9 2 . . . . 1 . . . . . 1 2 . 1 1 1 . . . Hunter 4 | . . . . . . . . . . . . . . . . . . . . . . . 2 . . 2 Programmer 12 | . . . . . . . 4 . . . . 1 . . . . . . . . . 1 3 1 1 1 Behemoth 2 | . . . . . . . . . . . 1 . . . . . . . 1 . . . . . . . Assembled 1 | . . 1 . . . . . . . . . . . . . . . . . . . . . . . . Thug 5 | . . . . . . . . . 3 . . . . . . . . . . 2 . . . . . . Savage 1 | . . . . . . . . . 1 . . . . . . . . . . . . . . . . . Butcher 2 | . . . . . . . . . . . 1 . . . . . . . 1 . . . . . . . Mutant 1 | . . . . . . . . . 1 . . . . . . . . . . . . . . . . . Best Kill Streak 8 | . 4 2 . 1 2 7 5 . 3 . 5 5 . 1 8 1 . 1 4 4 1 2 5 1 6 3 Combat Bots Only 8 | . 3 2 . 1 2 6 4 . 3 . 5 3 . . 8 . . 1 4 4 1 1 5 1 5 3 Max Kills in Single Turn 4 | . 1 2 . 1 1 4 3 . 1 . 2 1 . 1 2 1 . 1 2 3 1 1 4 1 1 1 Gunslinging . | . . . . . . . . . . . . . . . . . . . . . . . . . . . Exploded 4 | . . 1 . . . 4 2 . . . 2 1 . . 2 . . . 2 3 . . 4 . . . Melee 1 | . . . . . . . . . . . . . . . 1 . . 1 1 . . 1 1 1 1 1 Uniques/NPCs Destroyed . | . . . . . . . . . . . . . . . . . . . . . . . . . . . Combat | -11 -10 -10 -10 -9 -8 -8 -7 -7 -7 -7 -6 -6 -6 -6 -6 -6 -6 -5 -5 -5 -5 -5 -4 -3 -2 -1 -------- Run | Scr Mat Min Exi Min Mat Sto Fac Low Low Zio Pro Fac Was Fac Gar Fac Gar Fac Ext Cet Arc Hub Fac Res Res Acc Damage Taken 8351 | . 155 535 . 170 397 573 941 . 1236 . 889 190 . 87 441 . . 161 279 450 21 97 838 340 384 167 Core 1328 | . 53 135 . 53 14 50 89 . 159 . 75 9 . 30 19 . . 25 21 114 . 23 200 96 91 72 Absorbed by Shields 241 | . . . . . . . . . . . . . . . . . . . 117 124 . . . . . . Core Remaining (%) 78 | 100 . . . 3 . 88 . . . . 53 . . . . . 93 . . . . 81 82 92 93 95 Volleys Fired 415 | . 16 12 . 10 12 76 68 . 34 . 22 27 . 10 30 12 5 19 3 12 1 2 3 20 4 17 Largest 2 | . 2 2 . 2 2 2 2 . 2 . 2 2 . 1 1 1 1 1 1 1 1 1 1 1 1 1 Hottest 136 | . 90 90 . 90 112 136 136 . 118 . 69 69 . 35 36 35 35 35 43 43 35 35 43 113 113 113 Shots Fired 650 | . 32 24 . 14 22 148 127 . 68 . 40 34 . 13 30 12 5 19 3 12 1 2 3 20 4 17 Gun 174 | . 32 24 . 14 22 38 3 . 16 . 18 7 . . . . . . . . . . . . . . Cannon 432 | . . . . . . 108 123 . 52 . 18 24 . 13 19 12 5 19 2 . 1 2 1 20 4 9 Launcher 35 | . . . . . . 2 1 . . . 4 3 . . 11 . . . 1 12 . . 1 . . . Special 9 | . . . . . . . . . . . . . . . . . . . . . . . 1 . . 8 Kinetic 116 | . . . . 6 20 . . . 40 . 36 14 . . . . . . . . . . . . . . Thermal 418 | . . . . . 2 146 123 . 23 . . 17 . 13 19 12 5 19 2 . 1 2 1 20 4 9 Explosive 35 | . . . . . . 2 1 . . . 4 3 . . 11 . . . 1 12 . . 1 . . . Electromagnetic 72 | . 32 24 . 8 . . 3 . 5 . . . . . . . . . . . . . . . . . Robot Hit Streak 28 | . 12 15 . 5 7 28 14 . 15 . 8 16 . 2 4 . . . 1 1 1 2 3 . . 6 Robot Miss Streak 4 | . 4 4 . 2 2 4 3 . 3 . 4 1 . . 3 1 . . . 3 . 1 . 2 . 1 Penetration Max . | . . . . . . . . . . . . . . . . . . . . . . . . . . . Secondary Targets 2 | . . 1 . . 1 . . . . . . . . . . . . . . . . . . . . . Max Gunslinging Chain 1 | . . 1 . . 1 . . . . . . . . . . . . . . . . . . . . . Shots Hit Robots 475 | . 20 18 . 10 15 75 89 . 60 . 29 28 . 8 18 1 . 7 13 3 2 10 30 2 21 16 Core Hits 336 | . 14 14 . 7 6 29 42 . 49 . 31 21 . 1 34 1 . 5 13 30 1 6 17 1 9 5 Critical Hits 61 | . . . . 1 1 7 15 . 4 . 2 7 . 3 1 . . 2 2 1 . 4 2 . 7 2 Critical Kills 25 | . . . . 1 . 4 5 . 1 . . 4 . . . . . 1 1 . . 2 1 . 4 1 Critical Parts Destroyed 35 | . . . . . 1 3 10 . 3 . 2 3 . 3 1 . . 1 1 1 . 1 1 . 3 1 Melee Attacks 431 | . 3 . . . . . 12 . . . 3 52 . 36 19 32 5 49 21 1 1 19 65 38 52 23 Impact 3 | . 3 . . . . . . . . . . . . . . . . . . . . . . . . . Slashing 12 | . . . . . . . 12 . . . . . . . . . . . . . . . . . . . Piercing 416 | . . . . . . . . . . . 3 52 . 36 19 32 5 49 21 1 1 19 65 38 52 23 Sneak Attacks 19 | . . . . . . . 1 . . . . 4 . . 1 . . 1 2 . . 2 3 1 2 2 Combat Hostiles 3 | . . . . . . . . . . . . . . . . . . . . . . 2 1 . . . Follow-up Attacks 7 | . . . . . . . . . . . . . . . . . . . . . . . . . 7 . Damage Inflicted 21669 | . 283 371 . 165 263 1775 2309 . 1401 . 1181 1913 . 427 2192 54 . 561 878 1776 92 820 2455 236 1458 1059 Guns 2319 | . 283 256 . 165 263 612 54 . 301 . 243 142 . . . . . . . . . . . . . . Cannons 4755 | . . . . . . 960 1879 . 1100 . 310 122 . 30 227 . . . 31 . 32 30 34 . . . Explosions 4920 | . . 115 . . . 203 253 . . . 598 191 . . 1354 . . . 103 1701 . . 402 . . . Melee 9675 | . . . . . . . 123 . . . 30 1458 . 397 611 54 . 561 744 75 60 790 2019 236 1458 1059 Ramming . | . . . . . . . . . . . . . . . . . . . . . . . . . . . Kinetic 1983 | . . . . 70 263 . . . 833 . 553 264 . . . . . . . . . . . . . . Thermal 4404 | . . 115 . . . 1572 1879 . 454 . . . . 30 227 . . . 31 . 32 30 34 . . . Explosive 4805 | . . . . . . 203 253 . . . 598 191 . . 1354 . . . 103 1701 . . 402 . . . Electromagnetic 802 | . 283 256 . 95 . . 54 . 114 . . . . . . . . . . . . . . . . . Impact . | . . . . . . . . . . . . . . . . . . . . . . . . . . . Slashing 123 | . . . . . . . 123 . . . . . . . . . . . . . . . . . . . Piercing 9552 | . . . . . . . . . . . 30 1458 . 397 611 54 . 561 744 75 60 790 2019 236 1458 1059 Highest Corruption 9 | . . . . . 1 4 2 2 . . . . 8 9 5 . . . . . . . 6 3 2 2 Average Corruption 3 | . . . . . 1 3 1 1 . . . . 8 7 2 . . . . . . . 4 1 1 1 Corruption Purged 14 | . . . . . . . . 2 . . . . . 5 5 . . . . . . . . 1 . 1 Effects 88 | . . . . . . 31 8 . . . . . . 38 4 . . . . . . . 3 3 . 1 Message Errors 20 | . . . . . . 6 2 . . . . . . 7 3 . . . . . . . 1 1 . . Matter Fused 22 | . . . . . . 7 . . . . . . . 14 . . . . . . . . . 1 . . Heat Flow Errors 11 | . . . . . . 2 2 . . . . . . 5 . . . . . . . . 2 . . . Energy Discharges 7 | . . . . . . 2 1 . . . . . . 3 . . . . . . . . . . . 1 Parts Rejected 1 | . . . . . . 1 . . . . . . . . . . . . . . . . . . . . Data Loss (minor) 8 | . . . . . . 3 1 . . . . . . 3 . . . . . . . . . 1 . . Data Loss (major) 1 | . . . . . . . . . . . . . . 1 . . . . . . . . . . . . Misfires 3 | . . . . . . . . . . . . . . 3 . . . . . . . . . . . . Targeting Errors 13 | . . . . . . 8 2 . . . . . . 2 1 . . . . . . . . . . . Weapon Failures 2 | . . . . . . 2 . . . . . . . . . . . . . . . . . . . . Overload Shots . | . . . . . . . . . . . . . . . . . . . . . . . . . . . Overflow Damage 812 | . . 4 . . . 7 49 . . . . 229 . 19 75 . . . . 40 . 51 117 93 92 36 Projectiles 67 | . . . . . . 7 29 . . . . . . 6 25 . . . . . . . . . . . Explosions 117 | . . 4 . . . . 20 . . . . . . . 50 . . . . 40 . . 3 . . . Melee 628 | . . . . . . . . . . . . 229 . 13 . . . . . . . 51 114 93 92 36 Knockbacks 17 | . . . . . . . . . 3 . 12 2 . . . . . . . . . . . . . . Impact . | . . . . . . . . . . . . . . . . . . . . . . . . . . . Kinetic 17 | . . . . . . . . . 3 . 12 2 . . . . . . . . . . . . . . Secondary . | . . . . . . . . . . . . . . . . . . . . . . . . . . . Self-Inflicted Damage 189 | . . 72 . . . 15 . . . . . . . . 31 . . . . 71 . . . . . . Shots 5 | . . 2 . . . 1 . . . . . . . . 1 . . . . 1 . . . . . . Rammed . | . . . . . . . . . . . . . . . . . . . . . . . . . . . Targets Rammed . | . . . . . . . . . . . . . . . . . . . . . . . . . . . Kicked . | . . . . . . . . . . . . . . . . . . . . . . . . . . . Crushed . | . . . . . . . . . . . . . . . . . . . . . . . . . . . Highest Temperature 318 | . 120 135 . 168 106 318 184 . 78 . 21 10 . 288 16 . 9 6 2 22 . . 247 280 136 186 Average Temperature 59 | . 47 52 . 85 32 62 49 . 28 . 7 7 . 125 5 . 5 6 1 7 . . 76 93 42 52 Received Heat Transfer 1977 | . 57 51 . 99 216 162 204 . 459 . 318 48 . . 189 . . 27 49 53 . 9 27 9 . . Siege Activations . | . . . . . . . . . . . . . . . . . . . . . . . . . . . Robots Corrupted . | . . . . . . . . . . . . . . . . . . . . . . . . . . . Combat Hostiles . | . . . . . . . . . . . . . . . . . . . . . . . . . . . Parts Fried 2 | . 1 . . . . . . . 1 . . . . . . . . . . . . . . . . . Impact Corruptions . | . . . . . . . . . . . . . . . . . . . . . . . . . . . Robots Melted . | . . . . . . . . . . . . . . . . . . . . . . . . . . . Combat Hostiles . | . . . . . . . . . . . . . . . . . . . . . . . . . . . Parts Melted 13 | . . 1 . . . 4 4 . 2 . . . . . . . . . . . 1 1 . . . . Heat Transferred 7299 | . . 150 . . . 2701 3034 . 814 . . . . 50 350 . . . 50 . 50 50 50 . . . Parts Sabotaged . | . . . . . . . . . . . . . . . . . . . . . . . . . . . Parts Stolen . | . . . . . . . . . . . . . . . . . . . . . . . . . . . Parts Stripped . | . . . . . . . . . . . . . . . . . . . . . . . . . . . Power Chain Reactions 2 | . . 2 . . . . . . . . . . . . . . . . . . . . . . . . Missiles Intercepted . | . . . . . . . . . . . . . . . . . . . . . . . . . . . Alert | -11 -10 -10 -10 -9 -8 -8 -7 -7 -7 -7 -6 -6 -6 -6 -6 -6 -6 -5 -5 -5 -5 -5 -4 -3 -2 -1 ------- Run | Scr Mat Min Exi Min Mat Sto Fac Low Low Zio Pro Fac Was Fac Gar Fac Gar Fac Ext Cet Arc Hub Fac Res Res Acc Peak Influence 629 | . 180 105 . 81 89 186 273 . . . . 295 77 103 491 276 64 106 440 592 162 483 430 629 612 484 Initial 367 | . . 9 . . 22 . 45 . . . . 98 32 53 29 257 10 33 51 . . 56 120 27 254 367 Average 122 | . 45 22 . 40 53 64 105 . . . . 156 46 39 278 83 45 41 190 330 130 156 56 392 130 387 Maximum Alert Level 2 | . . . . . . . 1 . . . . 1 . . 2 1 . . 2 2 . 2 2 2 2 2 Low Security (%) 79 | 100 100 100 . 100 100 100 78 . . . . 77 100 100 36 87 100 100 56 47 100 66 97 19 69 . Level 1 12 | . . . . . . . 21 . . . . 22 . . 33 12 . . 21 9 . 32 1 14 18 70 Level 2 8 | . . . . . . . . . . . . . . . 30 . . . 22 42 . 1 . 66 11 29 Level 3 . | . . . . . . . . . . . . . . . . . . . . . . . . . . . Level 4 . | . . . . . . . . . . . . . . . . . . . . . . . . . . . Level 5 . | . . . . . . . . . . . . . . . . . . . . . . . . . . . High Security . | . . . . . . . . . . . . . . . . . . . . . . . . . . . Max Security . | . . . . . . . . . . . . . . . . . . . . . . . . . . . Squads Dispatched 46 | . 2 1 . . 2 2 6 . . . . 4 . 4 . 4 . 3 2 . . 7 3 4 1 1 Investigation 17 | . 1 1 . . 1 . 1 . . . . 2 . 2 . 1 . 2 2 . . 4 . . . . Extermination 16 | . . . . . . . 3 . . . . 2 . 2 . 1 . 1 . . . 1 2 2 1 1 Reinforcement 12 | . 1 . . . 1 2 1 . . . . . . . . 2 . . . . . 2 1 2 . . Assault . | . . . . . . . . . . . . . . . . . . . . . . . . . . . Garrison 1 | . . . . . . . 1 . . . . . . . . . . . . . . . . . . . Intercept . | . . . . . . . . . . . . . . . . . . . . . . . . . . . Construction Impeded . | . . . . . . . . . . . . . . . . . . . . . . . . . . . Haulers Reinforced 1 | . . . . . . . . . . . . . . . . . . . . . . . 1 . . . Stealth | -11 -10 -10 -10 -9 -8 -8 -7 -7 -7 -7 -6 -6 -6 -6 -6 -6 -6 -5 -5 -5 -5 -5 -4 -3 -2 -1 --------- Run | Scr Mat Min Exi Min Mat Sto Fac Low Low Zio Pro Fac Was Fac Gar Fac Gar Fac Ext Cet Arc Hub Fac Res Res Acc Distress Signals 17 | . 1 . . . . 2 2 . . . . 1 . . . . . . 3 1 . 2 1 1 2 1 Communications Jammed . | . . . . . . . . . . . . . . . . . . . . . . . . . . . Distress Signals . | . . . . . . . . . . . . . . . . . . . . . . . . . . . Times Spotted 302 | . 16 20 . 8 6 25 31 . 11 . 11 11 4 3 25 10 . 7 25 9 4 15 28 11 12 10 Peak Tracking Total 19 | . 3 19 . 3 3 5 4 . 5 . 5 2 4 1 7 2 . 2 7 5 2 3 7 3 6 4 Tactical Retreats 24 | . 3 . . 1 . . 3 . . . 1 1 . 1 5 . . . 1 . . 1 3 2 2 . Traps | -11 -10 -10 -10 -9 -8 -8 -7 -7 -7 -7 -6 -6 -6 -6 -6 -6 -6 -5 -5 -5 -5 -5 -4 -3 -2 -1 ------- Run | Scr Mat Min Exi Min Mat Sto Fac Low Low Zio Pro Fac Was Fac Gar Fac Gar Fac Ext Cet Arc Hub Fac Res Res Acc Traps Triggered 15 | . 1 . . . . 3 2 . . . . 1 . 1 1 . 2 1 1 . . 1 . . . 1 Indirectly . | . . . . . . . . . . . . . . . . . . . . . . . . . . . Trap Hack Attempts . | . . . . . . . . . . . . . . . . . . . . . . . . . . . Triggered . | . . . . . . . . . . . . . . . . . . . . . . . . . . . Disarmed 30 | . . . . . . 3 . . . . . . . . . . . . 12 . . 9 6 . . . Reprogrammed 9 | . . . . . . . . . . . . . . . . . . . . . . . 9 . . . Reused 1 | . . . . . . . . . . . . . . . . . . . . . . . 1 . . . Traps Extracted . | . . . . . . . . . . . . . . . . . . . . . . . . . . . Installed . | . . . . . . . . . . . . . . . . . . . . . . . . . . . Triggered 4 | . . . . . . . . 1 . . 2 . . . . . . . . . . . 1 . . . Machines | -11 -10 -10 -10 -9 -8 -8 -7 -7 -7 -7 -6 -6 -6 -6 -6 -6 -6 -5 -5 -5 -5 -5 -4 -3 -2 -1 ---------- Run | Scr Mat Min Exi Min Mat Sto Fac Low Low Zio Pro Fac Was Fac Gar Fac Gar Fac Ext Cet Arc Hub Fac Res Res Acc Machines Disabled 17 | . . 1 . 1 1 3 . . . . . . . 1 . . 1 1 3 3 1 . 1 . . . Max in Single Turn 1 | . . 1 . . 1 1 . . . . . . . 1 . . 1 1 1 1 . . . . . . Garrison Access 16 | . . . . . . 1 1 . . . . 3 . . . 1 . 1 . . . 2 2 1 2 2 Garrison Relay 1 | . . . . . . . . . . . . . . . . . 1 . . . . . . . . . Network Hub 4 | . . . . . . . . . . . . . . . . . . . . . . 4 . . . . Machines Sabotaged 3 | . . . . . . . . . . . . . . . . . . . . . . 3 . . . . Garrisons Compromised . | . . . . . . . . . . . . . . . . . . . . . . . . . . . Overloaded Fab Kills . | . . . . . . . . . . . . . . . . . . . . . . . . . . . Fab Network Shutdowns 2 | . . . . . . . . . . . . . . . . . . . . . . . . 1 1 . Hacking | -11 -10 -10 -10 -9 -8 -8 -7 -7 -7 -7 -6 -6 -6 -6 -6 -6 -6 -5 -5 -5 -5 -5 -4 -3 -2 -1 --------- Run | Scr Mat Min Exi Min Mat Sto Fac Low Low Zio Pro Fac Was Fac Gar Fac Gar Fac Ext Cet Arc Hub Fac Res Res Acc Machines Accessed 162 | . 6 2 4 . 2 8 13 1 . . . 21 . 11 . 14 . 11 12 4 1 12 13 7 12 8 Terminals 107 | . 6 1 . . 1 7 9 . . . . 11 . 9 . 8 . 7 12 4 . 10 7 5 5 5 Fabricators 19 | . . . . . . . 3 . . . . 5 . 1 . 3 . 1 . . . . 2 1 2 1 Repair Stations 3 | . . . . . . . . . . . . 1 . . . . . 1 . . . . . . 1 . Recycling Units 2 | . . . . . . . . . . . . . . . . . . . . . . . 1 . 1 . Scanalyzers 4 | . . . . . 1 . . . . . . . . . . . . 1 . . . . 1 . 1 . Garrison Access 20 | . . . . . . 1 1 . . . . 4 . 1 . 3 . 1 . . . 2 2 1 2 2 Total Hacks 551 | . 17 4 6 . 6 18 29 1 . . . 55 . 23 . 49 . 31 53 21 2 37 73 50 55 21 Successful 375 | . 12 3 6 . 4 9 13 1 . . . 20 . 9 . 33 . 20 47 15 2 28 56 32 49 16 Failed 173 | . 5 1 . . 2 9 16 . . . . 35 . 14 . 16 . 10 5 6 . 9 16 18 6 5 Catastrophic 24 | . 1 . . . 1 2 2 . . . . 6 . 4 . . . 1 . . . 1 3 1 . 2 Database Lockouts 3 | . . . . . . . . . . . . . . . . . . 1 1 . . . 1 . . . Manual 258 | . 5 3 1 . . 9 14 . . . . 21 . 9 . 14 . 15 32 18 . 23 39 28 22 5 Terminals 421 | . 17 3 . . 4 17 17 . . . . 36 . 19 . 40 . 24 53 21 . 35 52 44 25 14 Fabricators 68 | . . . . . . . 10 . . . . 12 . 3 . 6 . 2 . . . . 9 4 17 5 Repair Stations 8 | . . . . . . . . . . . . 2 . . . . . 2 . . . . . . 4 . Recycling Units 3 | . . . . . . . . . . . . . . . . . . . . . . . 1 . 2 . Scanalyzers 18 | . . . . . 2 . . . . . . . . . . . . 2 . . . . 9 . 5 . Garrison Access 23 | . . . . . . 1 2 . . . . 5 . 1 . 3 . 1 . . . 2 2 2 2 2 Terminal Hacks 208 | . 11 3 6 . 2 7 6 1 . . . 5 . 5 . 21 . 9 29 15 2 14 26 20 16 10 Record 24 | . . . 5 . . . . . . . . . . . . 1 . . . 5 2 1 1 3 2 4 Part Schematic 33 | . 2 1 . . . . 1 . . . . 1 . . . 4 . 1 5 3 . 1 4 8 2 . Robot Analysis 4 | . 2 . . . . . . . . . . . . . . . . . . . . . . . . 2 Prototype ID Bank 12 | . 2 . . . . . . . . . . . . . . 3 . . 1 . . 1 1 1 3 . Open Door 13 | . . 1 . . . 2 . 1 . . . . . . . . . . 7 1 . . . . . 1 Level Access Points 7 | . . . . . . . . . . . . . . 1 . . . 1 . 1 . 1 . 1 1 1 Branch Access Points 8 | . 1 . . . . . 1 . . . . 1 . . . 1 . 1 . 1 . 1 1 . . . Machine Index 6 | . . . . . . . . . . . . 1 . . . 1 . 1 . . . . 1 1 1 . Terminal Index 5 | . . . . . . . 1 . . . . . . 1 . . . . 1 . . 1 . . . 1 Fabricator Index 2 | . . . . . . . 1 . . . . . . 1 . . . . . . . . . . . . Garrison Index 1 | . . . . . . . . . . . . . . 1 . . . . . . . . . . . . Unreport Threat 32 | . 1 1 . . 2 4 1 . . . . . . . . 3 . . 7 4 . 3 4 . 2 . Locate Traps 13 | . 2 . . . . . 1 . . . . . . 1 . 3 . 1 1 . . 1 2 . 1 . Disarm Traps 8 | . . . . . . 1 . . . . . . . . . . . . 4 . . 2 1 . . . Reprogram Traps 2 | . . . . . . . . . . . . . . . . . . . . . . . 2 . . . Security Status 1 | . . . . . . . . . . . . . . . . . . . . . . . 1 . . . Patrol Status 1 | . . . . . . . . . . . . . . . . . . . 1 . . . . . . . Transport Status 1 | . . . . . . . . . . . . . . . . . . . . . . . 1 . . . Coupling Status 1 | . . . . . . . . . . . . . . . . . . . . . . . 1 . . . Recall Investigation 2 | . . . . . . . . . . . . . . . . . . . 2 . . . . . . . Recall Extermination 8 | . . . . . . . . . . . . 1 . . . 1 . 1 . . . . 2 1 1 1 Recall Reinforcements 5 | . . . . . . . . . . . . . . . . 1 . . . . . 2 1 1 . . Hauler Manifests 7 | . 1 . . . . . . . . . . 1 . . . 1 . 1 . . . . 1 1 1 . Registered Components 6 | . . . . . . . . . . . . . . . . 1 . 1 . . . . 1 2 1 . Registered Prototypes 5 | . . . . . . . . . . . . . . . . 1 . 1 . . . . 1 1 1 . EX-Prototype ID Bank 1 | . . . 1 . . . . . . . . . . . . . . . . . . . . . . . Fabricator Hacks 39 | . . . . . . . 3 . . . . 7 . 2 . 4 . 2 . . . . 7 2 10 2 Load Schematic 19 | . . . . . . . 3 . . . . 3 . 1 . 2 . 1 . . . . 3 1 4 1 Build 20 | . . . . . . . . . . . . 4 . 1 . 2 . 1 . . . . 4 1 6 1 Repair Station Hacks 7 | . . . . . . . . . . . . 1 . . . . . 2 . . . . . . 4 . Scan Component 4 | . . . . . . . . . . . . 1 . . . . . 1 . . . . . . 2 . Repair 3 | . . . . . . . . . . . . . . . . . . 1 . . . . . . 2 . Recycling Unit Hacks 3 | . . . . . . . . . . . . . . . . . . . . . . . 1 . 2 . Report Inventory 2 | . . . . . . . . . . . . . . . . . . . . . . . 1 . 1 . Retrieve Components 1 | . . . . . . . . . . . . . . . . . . . . . . . . . 1 . Scanalyzer 17 | . . . . . 2 . . . . . . . . . . . . 2 . . . . 9 . 4 . Insert Component 8 | . . . . . 1 . . . . . . . . . . . . 1 . . . . 3 . 3 . Analyze 9 | . . . . . 1 . . . . . . . . . . . . 1 . . . . 6 . 1 . Garrison Access Hacks 19 | . . . . . . 1 1 . . . . 3 . 1 . 2 . 1 . . . 2 2 2 2 2 Unlock Access 2 | . . . . . . . . . . . . . . 1 . 1 . . . . . . . . . . Seal Access 16 | . . . . . . 1 1 . . . . 3 . . . 1 . 1 . . . 2 2 1 2 2 Coupler Status 1 | . . . . . . . . . . . . . . . . . . . . . . . . 1 . . Unauthorized Hacks 82 | . 1 . . . . 1 3 . . . . 4 . 1 . 6 . 4 18 . . 12 11 8 11 2 Terminals 69 | . 1 . . . . 1 3 . . . . 4 . . . 5 . 4 18 . . 12 9 6 6 . Track 23 | . 1 . . . . 1 2 . . . . 1 . . . 1 . . 3 . . 4 4 3 3 . Assimilate 6 | . . . . . . . . . . . . 1 . . . 1 . 1 2 . . 1 . . . . Botnet 33 | . . . . . . . 1 . . . . 2 . . . 3 . 3 11 . . 4 3 3 3 . Disrupt 4 | . . . . . . . . . . . . . . . . . . . 2 . . . 2 . . . Sabotage 3 | . . . . . . . . . . . . . . . . . . . . . . 3 . . . . Fabricators 12 | . . . . . . . . . . . . . . 1 . . . . . . . . 2 2 5 2 Report 1 | . . . . . . . . . . . . . . . . . . . . . . . . . 1 . Prioritize 4 | . . . . . . . . . . . . . . . . . . . . . . . . 1 2 1 Siphon 7 | . . . . . . . . . . . . . . 1 . . . . . . . . 2 1 2 1 Repair Stations . | . . . . . . . . . . . . . . . . . . . . . . . . . . . Recycling Units . | . . . . . . . . . . . . . . . . . . . . . . . . . . . Scanalyzers . | . . . . . . . . . . . . . . . . . . . . . . . . . . . Garrison Access 1 | . . . . . . . . . . . . . . . . 1 . . . . . . . . . . Eject 1 | . . . . . . . . . . . . . . . . 1 . . . . . . . . . . Data Cores Recovered . | . . . . . . . . . . . . . . . . . . . . . . . . . . . Used . | . . . . . . . . . . . . . . . . . . . . . . . . . . . Hacking Detections 106 | . 6 1 . . 2 7 11 . . . . 16 . 10 . 9 . 7 9 2 . 8 6 3 3 6 Full Trace Events 8 | . . . . . 1 1 1 . . . . 2 . 1 . . . 1 1 . . . . . . . Feedback Events 1 | . . . . . . . . . . . . 1 . . . . . . . . . . . . . . Hackware Fried 1 | . . . . . . . . . . . . 1 . . . . . . . . . . . . . . Feedback Blocked . | . . . . . . . . . . . . . . . . . . . . . . . . . . . Robot Schematics Acquired . | . . . . . . . . . . . . . . . . . . . . . . . . . . . Robots Built . | . . . . . . . . . . . . . . . . . . . . . . . . . . . Matter . | . . . . . . . . . . . . . . . . . . . . . . . . . . . Time . | . . . . . . . . . . . . . . . . . . . . . . . . . . . Total Robot Build Rating . | . . . . . . . . . . . . . . . . . . . . . . . . . . . Part Schematics Acquired 36 | . 2 1 . . 1 . 1 . . . . 1 . . . 4 . 2 5 2 . 1 7 6 3 . Parts Built 19 | . . . . . . . . . . . . 3 . 1 . 2 . 1 . . . . 4 1 6 1 Matter 3702 | . . . . . . . . . . . . 526 . 142 . 358 . 285 . . . . 743 213 1051 384 Time 1038 | . . . . . . . . . . . . 130 . 95 . 73 . 76 . . . . 173 76 313 102 Total Part Build Rating 110 | . . . . . . . . . . . . 13 . 5 . 9 . 5 . . . . 23 5 42 8 Parts Repaired 3 | . . . . . . . . . . . . . . . . . . 1 . . . . . . 2 . Time 210 | . . . . . . . . . . . . . . . . . . 50 . . . . . . 160 . Parts Recycled . | . . . . . . . . . . . . . . . . . . . . . . . . . . . Recycled Matter . | . . . . . . . . . . . . . . . . . . . . . . . . . . . Retrieved Matter . | . . . . . . . . . . . . . . . . . . . . . . . . . . . Retrieved Components 2 | . . . . . . . . . . . . . . . . . . . . . . . . . 2 . Parts Scanalyzed 7 | . . . . . 1 . . . . . . . . . . . . 1 . . . . 3 . 2 . Part Schematics Acquired 6 | . . . . . 1 . . . . . . . . . . . . 1 . . . . 3 . 1 . Parts Damaged . | . . . . . . . . . . . . . . . . . . . . . . . . . . . Bothacking | -11 -10 -10 -10 -9 -8 -8 -7 -7 -7 -7 -6 -6 -6 -6 -6 -6 -6 -5 -5 -5 -5 -5 -4 -3 -2 -1 ------------ Run | Scr Mat Min Exi Min Mat Sto Fac Low Low Zio Pro Fac Was Fac Gar Fac Gar Fac Ext Cet Arc Hub Fac Res Res Acc Used RIF Installer 2 | . . . . . . . . . . . . . . . 1 . 1 . . . . . . . . . Watcher Feeds 1 | . . . . . . . . . . . . . . . . . 1 . . . . . . . . . Robots Hacked 4 | . . . . . . . . . . . . . . . . . . . . . . . 1 . . 3 Non-combat . | . . . . . . . . . . . . . . . . . . . . . . . . . . . Combat 4 | . . . . . . . . . . . . . . . . . . . . . . . 1 . . 3 Robot Hacks Applied 4 | . . . . . . . . . . . . . . . . . . . . . . . 1 . . 3 parse_system 1 | . . . . . . . . . . . . . . . . . . . . . . . 1 . . . formatsys_high 3 | . . . . . . . . . . . . . . . . . . . . . . . . . . 3 Relay Couplers Released 12 | . . . . . . 4 . . . . . . . . . 3 3 . . . . 2 . . . . Ejected 3 | . . . . . . . . . . . . . . . . 3 . . . . . . . . . . Machine Destruction 9 | . . . . . . 4 . . . . . . . . . . 3 . . . . 2 . . . . Attached 1 | . . . . . . . . . . . . . . . . . . . . . . . . . . 1 Robots Rewired 18 | . . . . . . . . . 2 . . . . . 6 . . . 10 . . . . . . . Allies Hacked 1 | . . . . . . . . . . . . . . . . . . . . . . . 1 . . . Hacks Repelled . | . . . . . . . . . . . . . . . . . . . . . . . . . . . Allies | -11 -10 -10 -10 -9 -8 -8 -7 -7 -7 -7 -6 -6 -6 -6 -6 -6 -6 -5 -5 -5 -5 -5 -4 -3 -2 -1 -------- Run | Scr Mat Min Exi Min Mat Sto Fac Low Low Zio Pro Fac Was Fac Gar Fac Gar Fac Ext Cet Arc Hub Fac Res Res Acc Total Allies 42 | . . . . 4 . . . . 2 . . 1 . . 6 1 . 1 18 5 . 1 . . . 3 Largest Group 13 | . . . . 4 2 . . . 2 2 2 1 . . 6 1 . 1 13 12 12 8 4 . . 3 Highest-Rated Group 768 | . . . . 71 24 . . . 50 50 50 26 . . 156 10 . 10 490 768 768 552 292 . . 270 Highest-Rated Ally 156 | . . . . 31 16 . . . 25 25 25 26 . . 32 10 . 10 156 143 127 94 94 . . 90 Total Orders 8 | . . . . . . . . . . . . . . . 2 . . 1 2 . . . 3 . . . STAY 4 | . . . . . . . . . . . . . . . 1 . . 1 1 . . . 1 . . . FOLLOW 4 | . . . . . . . . . . . . . . . 1 . . . 1 . . . 2 . . . Ally Attacks 353 | . . . . 41 10 . . . . . 6 . . . 29 . . . 104 44 33 52 28 . . 6 Total Damage 9192 | . . . . 496 122 . . . . . 183 . . . 974 . . . 2264 769 1084 1916 1119 . . 265 Kills 64 | . . . . 6 2 . . . . . 1 . . . 3 . . . 26 5 3 13 4 . . 1 Allies Corrupted 1 | . . . . . . . . . . . . . . . . . . . . . . . 1 . . . Allies Melted 1 | . . . . . . . . . . . . . . . 1 . . . . . . . . . . . Intel | -11 -10 -10 -10 -9 -8 -8 -7 -7 -7 -7 -6 -6 -6 -6 -6 -6 -6 -5 -5 -5 -5 -5 -4 -3 -2 -1 ------- Run | Scr Mat Min Exi Min Mat Sto Fac Low Low Zio Pro Fac Was Fac Gar Fac Gar Fac Ext Cet Arc Hub Fac Res Res Acc Robot Analysis Total 4 | . 2 . . . . . . . . . . . . . . . . . . . . . . . . 2 Derelict Logs Recovered 7 | . . 1 . 1 . . . 1 1 2 1 . . . . . . . . . . . . . . . Drone Launches . | . . . . . . . . . . . . . . . . . . . . . . . . . . . Drone Recoveries . | . . . . . . . . . . . . . . . . . . . . . . . . . . . Exploration | -11 -10 -10 -10 -9 -8 -8 -7 -7 -7 -7 -6 -6 -6 -6 -6 -6 -6 -5 -5 -5 -5 -5 -4 -3 -2 -1 ------------- Run | Scr Mat Min Exi Min Mat Sto Fac Low Low Zio Pro Fac Was Fac Gar Fac Gar Fac Ext Cet Arc Hub Fac Res Res Acc Turns Passed 24896 | 87 1077 1438 548 995 425 1339 2520 672 717 2383 594 1393 39 1074 1002 789 193 1493 884 336 117 727 1381 1020 1024 629 Spaces Moved 22710 | 49 568 751 304 522 202 592 1242 402 339 1307 278 1950 75 1352 609 1283 211 2110 1122 393 150 1136 2002 1321 1523 917 Core 5 | 4 . . . . . . . . . . . 1 . . . . . . . . . . . . . . Treads 6588 | 45 568 751 304 522 202 592 1242 402 339 1307 278 36 . . . . . . . . . . . . . . Legs . | . . . . . . . . . . . . . . . . . . . . . . . . . . . Wheels . | . . . . . . . . . . . . . . . . . . . . . . . . . . . Hover . | . . . . . . . . . . . . . . . . . . . . . . . . . . . Flight 16117 | . . . . . . . . . . . . 1913 75 1352 609 1283 211 2110 1122 393 150 1136 2002 1321 1523 917 Fastest Speed 39 | 50 160 180 180 160 160 160 167 167 163 165 166 50 50 50 50 50 50 50 50 50 50 50 50 42 39 39 Average Speed 84 | 153 172 180 180 179 171 169 167 167 164 181 185 52 50 50 50 50 50 50 50 50 50 50 50 42 40 39 Slowest Speed 1000 | 160 180 180 180 180 180 180 170 167 166 186 190 1000 50 50 50 50 50 50 50 50 50 50 50 42 42 39 Overloaded Moves . | . . . . . . . . . . . . . . . . . . . . . . . . . . . Propulsion Burnouts . | . . . . . . . . . . . . . . . . . . . . . . . . . . . Robots Hopped 28 | . . . . . . . . . . . . 6 . 1 2 2 . 3 6 . . 3 4 . . 1 Cave-ins Triggered . | . . . . . . . . . . . . . . . . . . . . . . . . . . . Exploration Rate (%) 54 | 4 97 99 63 72 13 80 40 64 56 81 49 56 75 33 65 36 39 48 79 74 93 61 32 28 22 24 Regions Visited 26 Branch Regions 12 Pre-discovered Areas 1 | . . . 1 . . . . . . . . . . . . . . . . . . . . . . . Known Exits Taken 11 | . 1 . . . 1 . 1 1 . . . . . 1 . 1 . 1 . 1 . 1 . 1 1 . Unknown Exits Taken 11 | 1 . 1 1 1 . 1 . . 1 1 1 . . . . . . . 1 . 1 . 1 . . . Scrap Searched 16 | . . 2 . . . . . 4 4 4 2 . . . . . . . . . . . . . . . Spaces Dug 359 | . 2 . . . . 24 11 . . . . 48 . 33 8 38 6 55 1 . . 8 28 51 26 20 Terrain Destroyed 695 | . 2 10 . . . 56 17 . . . 29 73 . 35 58 39 6 57 21 139 . 9 45 53 26 20 Melee 245 | . 2 . . . . . 11 . . . . 32 . 24 5 27 2 39 1 . . 8 28 33 22 11 Projectile 136 | . . . . . . 35 . . . . . 17 . 11 5 12 4 18 . . . 1 . 20 4 9 AOE 314 | . . 10 . . . 21 6 . . . 29 24 . . 48 . . . 20 139 . . 17 . . . Terrain Rammed . | . . . . . . . . . . . . . . . . . . . . . . . . . . . Walls Destroyed . | . . . . . . . . . . . . . . . . . . . . . . . . . . . Machines Disabled . | . . . . . . . . . . . . . . . . . . . . . . . . . . . Actions | -11 -10 -10 -10 -9 -8 -8 -7 -7 -7 -7 -6 -6 -6 -6 -6 -6 -6 -5 -5 -5 -5 -5 -4 -3 -2 -1 --------- Run | Scr Mat Min Exi Min Mat Sto Fac Low Low Zio Pro Fac Was Fac Gar Fac Gar Fac Ext Cet Arc Hub Fac Res Res Acc Total 27109 | 58 629 816 307 564 261 781 1540 403 431 1316 316 2196 75 1685 1238 1371 285 2453 1400 514 188 1258 2274 1705 1901 1144 Wait 2958 | . 19 29 . 23 20 56 181 . 6 1 5 111 . 264 535 29 41 260 205 105 36 92 179 299 291 171 Move 22630 | 48 567 750 303 521 201 591 1241 401 338 1306 277 1938 74 1350 604 1279 210 2103 1109 392 149 1129 1993 1320 1522 914 Hop 28 | . . . . . . . . . . . . 6 . 1 2 2 . 3 6 . . 3 4 . . 1 Pick Up 116 | 4 9 13 1 5 7 6 6 . 5 3 1 15 . 7 . 5 1 5 1 . . 1 4 5 11 1 Fast Attach 73 | 6 3 1 . 2 4 18 7 . 5 1 2 7 . 1 . 2 . 3 . . . . 1 1 8 1 Attach 45 | . 1 3 . 1 6 1 1 . 5 1 . 6 . 2 . . . 2 . 1 . 1 4 4 1 5 Detach 19 | . 2 . . 1 2 . . . . 1 . 3 . . . 1 . 1 . . . 1 2 1 1 3 Swap 137 | . 3 1 . . 4 7 13 1 3 . 5 14 1 6 10 3 . 3 8 3 1 6 14 12 9 10 Drop 131 | . 6 7 3 1 5 26 11 1 3 3 1 17 . 8 . 6 1 5 1 . . 1 5 5 15 . Fire 415 | . 16 12 . 10 12 76 68 . 34 . 22 27 . 10 30 12 5 19 3 12 1 2 3 20 4 17 Melee 415 | . 3 . . . . . 12 . . . 3 52 . 36 19 32 5 49 21 1 1 19 65 38 39 20 Ram . | . . . . . . . . . . . . . . . . . . . . . . . . . . . Kick . | . . . . . . . . . . . . . . . . . . . . . . . . . . . Crush . | . . . . . . . . . . . . . . . . . . . . . . . . . . . Escape Stasis 42 | . . . . . . . . . . . . . . . 11 . 22 . 6 . . 3 . . . . Rewire 100 | . . . . . . . . . 32 . . . . . 27 . . . 40 . . . . . . 1 Trap . | . . . . . . . . . . . . . . . . . . . . . . . . . . . Miscellaneous . | . . . . . . . . . . . . . . . . . . . . . . . . . . . Route ------- -11/Scrapyard -10/Materials (discovered 4 exits: [*Mat x3] / *Min) -10/Mines (discovered 3 exits: [*Mat x2] / *Exi) -10/Exiles (discovered 2 exits: [*Min x2]) -9/Mines -8/Materials -8/Storage -7/Factory (discovered 2 exits: *Low x2) -7/Lower Caves -7/Lower Caves (discovered 2 exits: *Fac / [*Zio]) -7/Zion -6/Proximity Caves -6/Factory (discovered 4 exits: *Fac x2 / *Low x2) -6/Waste -6/Factory (discovered 6 exits: *Fac x4 / *Low / Gar) -6/Garrison (discovered 3 exits: *Fac x3) -6/Factory (discovered 4 exits: *Fac / Low x2 / Gar) -6/Garrison -5/Factory (discovered 8 exits: *Fac x4 / Upp x2 / *Ext x2) -5/Extension (discovered 3 exits: *Fac x2 / *Cet) -5/Cetus (discovered 3 exits: Fac x2 / *Arc) -5/Archives (discovered 3 exits: *Fac / *Hub x2) -5/Hub_04(d) (discovered 4 exits: *Fac x4) -4/Factory (discovered 4 exits: *Res / *Upp x2 / Arm) -3/Research (discovered 4 exits: *Res x3 / [Qua]) -2/Research (discovered 4 exits: *Acc x3 / [*Tes]) -1/Access To Epsilon Eridani History --------- Turn | Location | Event 26 | -11/Scrapyard | Discovered new exit (range 15) 88 | -11/Scrapyard | Entered Materials 300 | -10/Materials | Build established: Mutant 326 | -10/Materials | Discovered new exit (range 12) 363 | -10/Materials | Discovered new exit (range 9) 624 | -10/Materials | Discovered new exit (range 4) 726 | -10/Materials | Identified exit to Mines 920 | -10/Materials | Discovered new exit (range 9) 1165 | -10/Materials | Entered Mines 1173 | -10/Mines | Joined a pair of Derelicts in attacking an 0b10 outpost 1222 | -10/Mines | Assembled infested the area 1227 | -10/Mines | Assisted by a Guerilla fighting off Assembled 1239 | -10/Mines | Discovered new exit (range 15) 1267 | -10/Mines | Core integrity fell below 50% 1485 | -10/Mines | Learned Materials trap positions 1491 | -10/Mines | Met a Derelict shopkeep closing up shop 1578 | -10/Mines | Deemed a non-threat by the Exiles lab entrance 1884 | -10/Mines | Discovered new exit (range 13) 2596 | -10/Mines | Discovered new exit (range 5) 2603 | -10/Mines | Entered Exiles 2627 | -10/Exiles | Discovered new exit (range 15) 2648 | -10/Exiles | Met 8R-AWN 2677 | -10/Exiles | Met EX-HEX 2747 | -10/Exiles | Met EX-DEC 2756 | -10/Exiles | Learned location of Zion (-7) 2785 | -10/Exiles | Met EX-BIN 2843 | -10/Exiles | Aligned with FarCom system 2845 | -10/Exiles | Given EX-Vault access code 2890 | -10/Exiles | Opened EX-Vault 2902 | -10/Exiles | Found Flying Fortress v7 2971 | -10/Exiles | Warned to stay clear of 0b10 Research branches 3137 | -10/Exiles | Discovered new exit (range 10) 3151 | -10/Exiles | Left Exiles lab with Flying Fortress v7 3151 | -10/Exiles | Entered Mines 3280 | -9/Mines | Core integrity fell below 20% 3545 | -9/Mines | Assisted by bots powering up and referring to "LRC-V3" 4006 | -9/Mines | Received a Mining Laser from a helpful Derelict 4118 | -9/Mines | Discovered new exit (range 5) 4146 | -9/Mines | Entered Materials 4146 | -8/Materials | Accompanied by 2 allies 4146 | -8/Materials | Evolved 4 slots: Propulsion x1, Utility x3 4147 | -8/Materials | Identified exit to Storage 4148 | -8/Materials | Loaded intel: 23 trap records 4571 | -8/Materials | Entered Storage 5867 | -8/Storage | Discovered new exit (range 3) 5910 | -8/Storage | Entered Factory 5910 | -7/Factory | Evolved 2 slots: Propulsion x1, Utility x1 6832 | -7/Factory | Garrison activated, responded to threat 7397 | -7/Factory | Identified exit to Lower Caves 8430 | -7/Factory | Entered Lower Caves 8442 | -7/Lower Caves | Identified exit to Lower Caves 9059 | -7/Lower Caves | Encountered a Warlord checkpoint 9102 | -7/Lower Caves | Entered another Lower Caves area 9154 | -7/Lower Caves | Lost 4 parts (1p1n1u1w) 9156 | -7/Lower Caves | Discovered new exit (range 15) 9585 | -7/Lower Caves | Attacked by a faux Warlord 9653 | -7/Lower Caves | Lost 3 parts (1p1n1w) 9683 | -7/Lower Caves | Learned Factory trap positions 9750 | -7/Lower Caves | Discovered new exit (range 18) 9819 | -7/Lower Caves | Entered Zion 9819 | -7/Zion | Accompanied by 2 allies 9944 | -7/Zion | Found CR-A16's Pointy Stick 10025 | -7/Zion | Discovered new exit (range 15) 10084 | -7/Zion | Build established: Derelict-Mutant 10111 | -7/Zion | Learned 4 Factory zone layouts 10136 | -7/Zion | Received a visual enhancement algorithm 10172 | -7/Zion | Learned Factory terminal intel 10276 | -7/Zion | Found Relay Coupler [Programmer] 10286 | -7/Zion | Found Relay Coupler [Programmer] 10367 | -7/Zion | Given the Hacking Drone Bay 10558 | -7/Zion | Build established: Mutant 10579 | -7/Zion | Acquired unknown access codes intercepted by a Zionite 12202 | -7/Zion | Entered Proximity Caves 12202 | -6/Proximity Caves | Accompanied by 2 allies 12548 | -6/Proximity Caves | Learned 12 Factory zone layouts 12625 | -6/Proximity Caves | Spotted B-75 Beast 12665 | -6/Proximity Caves | Revealed the true nature of CR-A16's Pointy Stick 12668 | -6/Proximity Caves | Destroyed B-75 Beast 12671 | -6/Proximity Caves | Discovered new exit (range 9) 12708 | -6/Proximity Caves | Lost 3 parts (1p1n1u) 12796 | -6/Proximity Caves | Entered Factory 12796 | -6/Factory | Evolved 2 slots: Utility x2 12798 | -6/Factory | Loaded intel: 104 trap records 12799 | -6/Factory | Loaded intel: 20 terminal locations 13170 | -6/Factory | Build established: Hacker-Scout 13187 | -6/Factory | Discovered new exit (range 19) 13477 | -6/Factory | Discovered new exit (range 23) 13556 | -6/Factory | System Shield fried by hacking feedback 13659 | -6/Factory | Identified exit to Lower Caves 13787 | -6/Factory | Fabricated Hacking Suite (x1) 13813 | -6/Factory | Discovered new exit (range 15) 14048 | -6/Factory | Fabricated Imp. Hacking Suite (x1) 14145 | -6/Factory | Fabricated Imp. Hacking Suite? 14189 | -6/Factory | Sucked down chute 14189 | -6/Factory | Entered Waste 14194 | -6/Waste | Spotted C-40 Crusher 14194 | -6/Waste | Spotted C-40 Crusher 14204 | -6/Waste | EMP discharged 14211 | -6/Waste | Spotted C-40 Crusher 14215 | -6/Waste | Spotted C-40 Crusher 14216 | -6/Waste | Spotted C-40 Crusher 14218 | -6/Waste | Spotted C-40 Crusher 14220 | -6/Waste | Discovered new exit (range 16) 14228 | -6/Waste | Entered Factory 14404 | -6/Factory | Identified exit to Factory 14494 | -6/Factory | Fabricated Imp. Hacking Suite (x1) 14507 | -6/Factory | Discovered exit to Lower Caves (range 11) 15302 | -6/Factory | Identified exit to Garrison 15302 | -6/Factory | Entered Garrison 15653 | -6/Garrison | Triggered checkpoint 15698 | -6/Garrison | Triggered checkpoint 15703 | -6/Garrison | Destroyed 8 combat bots 15710 | -6/Garrison | Triggered checkpoint 15721 | -6/Garrison | Discovered new exit (range 15) 15916 | -6/Garrison | Discovered new exit (range 11) 16285 | -6/Garrison | Discovered new exit (range 15) 16292 | -6/Garrison | Build established: Hacker-Mutant 16295 | -6/Garrison | Installed Relay Interface Framework 16304 | -6/Garrison | Entered Factory 16534 | -6/Factory | Fabricated Imp. System Shield? 16638 | -6/Factory | Build established: Hacker-Scout 16693 | -6/Factory | Fabricated Remote Datajack (x1) 17030 | -6/Factory | Discovered exit to Factory (range 11) 17093 | -6/Factory | Identified exit to Garrison 17093 | -6/Factory | Entered Garrison 17157 | -6/Garrison | Garrison Relay disabled 17276 | -6/Garrison | Discovered exit to Factory (range 10) 17283 | -6/Garrison | Expanded RIF knowledge: Patrol Navigation 17286 | -6/Garrison | Entered Factory 17286 | -5/Factory | Evolved 2 slots: Utility x2 17604 | -5/Factory | Fabricated Exp. Propulsion Shielding (x1) 17774 | -5/Factory | Discovered new exit (range 6) 17850 | -5/Factory | Repaired Lyr. Medium Armor Plating 18067 | -5/Factory | Central database locked down 18302 | -5/Factory | Identified exit to Upper Caves 18302 | -5/Factory | Identified exit to Extension 18302 | -5/Factory | Identified exit to Factory 18779 | -5/Factory | Entered Extension 18800 | -5/Extension | Rescued a captive Derelict 18808 | -5/Extension | Rescued a captive Derelict 18940 | -5/Extension | Rescued a captive Derelict 18990 | -5/Extension | Rescued A7 19006 | -5/Extension | Rescued a captive Derelict 19102 | -5/Extension | Spotted B-75 Beast 19106 | -5/Extension | Spotted B-75 Beast 19108 | -5/Extension | Allies destroyed B-75 Beast 19113 | -5/Extension | Destroyed B-75 Beast 19120 | -5/Extension | Central database locked down 19120 | -5/Extension | Discovered exit to Factory (range 3) 19140 | -5/Extension | Rescued a captive Derelict 19232 | -5/Extension | Rescued a captive Derelict 19233 | -5/Extension | Rescued a captive Derelict 19317 | -5/Extension | Discovered exit to Factory (range 10) 19317 | -5/Extension | Discovered new exit (range 6) 19330 | -5/Extension | Disrupted transfer network 19663 | -5/Extension | Entered Cetus 19663 | -5/Cetus | Accompanied by 12 allies (A7) 19668 | -5/Cetus | Acquired a Cetus Manufacturing Module code from A7 19672 | -5/Cetus | Spotted Cetus Guard 19673 | -5/Cetus | Spotted Cetus Guard 19680 | -5/Cetus | Spotted Cetus Guard 19681 | -5/Cetus | Spotted Cetus Guard 19693 | -5/Cetus | Allies destroyed Cetus Guard 19694 | -5/Cetus | Allies destroyed Cetus Guard 19697 | -5/Cetus | Allies destroyed Cetus Guard 19700 | -5/Cetus | Allies destroyed Cetus Guard 19740 | -5/Cetus | Escorted A7 to Cetus Mainframe 19743 | -5/Cetus | Started Cetus Manufacturing Module 19768 | -5/Cetus | Manufactured an Enhanced Grunt 19793 | -5/Cetus | Manufactured an Enhanced Grunt 19818 | -5/Cetus | Manufactured an Enhanced Grunt 19843 | -5/Cetus | Manufactured an Enhanced Grunt 19851 | -5/Cetus | Identified exit to Archives 19868 | -5/Cetus | Manufactured an Enhanced Grunt 19960 | -5/Cetus | Build established: Hacker-Mutant 19999 | -5/Cetus | Entered Archives 19999 | -5/Archives | Accompanied by 12 allies (A7) 20004 | -5/Archives | Received a hacking code to weaken MAIN.C 20029 | -5/Archives | Discovered new exit (range 16) 20033 | -5/Archives | Unable to access archive contents 20039 | -5/Archives | Discovered exit to Factory (range 16) 20042 | -5/Archives | Unable to access archive contents 20044 | -5/Archives | Discovered new exit (range 16) 20047 | -5/Archives | Unable to access archive contents 20050 | -5/Archives | Unable to access archive contents 20116 | -5/Archives | Entered Hub_04(d) 20116 | -5/Hub_04(d) | Accompanied by 8 allies 20477 | -5/Hub_04(d) | Build established: Hacker-Scout 20725 | -5/Hub_04(d) | Network Hub disabled 20725 | -5/Hub_04(d) | Network Hub disabled 20771 | -5/Hub_04(d) | Network Hub disabled 20810 | -5/Hub_04(d) | Network Hub disabled 20819 | -5/Hub_04(d) | Disrupted transfer network 20843 | -5/Hub_04(d) | Entered Factory 20843 | -4/Factory | Accompanied by 4 allies 20843 | -4/Factory | Evolved 2 slots: Utility x2 20915 | -4/Factory | Identified exit to Upper Caves 20915 | -4/Factory | Identified exit to Armory 21097 | -4/Factory | Discovered new exit (range 11) 21368 | -4/Factory | Build established: Wizard-Scout 21375 | -4/Factory | Fabricated Adv. Hacking Suite? 21402 | -4/Factory | Fabricated Adv. Hacking Suite (x1) 21449 | -4/Factory | Fabricated Adv. Hacking Suite (x1) 21582 | -4/Factory | Fabricated Exp. Weapon Shielding (x1) 21778 | -4/Factory | Central database locked down 22224 | -4/Factory | Entered Research 22224 | -3/Research | Evolved 2 slots: Power x1, Propulsion x1 22277 | -3/Research | Fabricated Exp. Propulsion Shielding (x1) 22416 | -3/Research | Identified exit to Research 22423 | -3/Research | Local fabrication network quarantined 22553 | -3/Research | Discovered new exit (range 20) 23244 | -3/Research | Entered another Research area 23244 | -2/Research | Evolved 2 slots: Utility x1, Weapon x1 23312 | -2/Research | Fabricated Force Lance (x1) 23372 | -2/Research | Fabricated Force Lance (x1) 23400 | -2/Research | Identified exit to Access 23435 | -2/Research | Build established: Hacker-Scout 23436 | -2/Research | Fabricated Nanoactuators? 23542 | -2/Research | Fabricated Exp. Melee Analysis Suite (x1) 23616 | -2/Research | Found Enh. Force Lance 23624 | -2/Research | Found Enh. Force Lance 23760 | -2/Research | Found Adv. Force Booster 23801 | -2/Research | Discovered new exit (range 13) 23846 | -2/Research | Fabricated Exp. Hacking Suite (x1) 23939 | -2/Research | Found Prototype Launcher 23949 | -2/Research | Identified Ragnarok Missile Launcher 24003 | -2/Research | Repaired Exp. Weapon Shielding 24119 | -2/Research | Repaired Exp. Propulsion Shielding? 24149 | -2/Research | Local fabrication network quarantined 24206 | -2/Research | Build established: Hacker-Ninja 24268 | -2/Research | Entered Access 24268 | -1/Access | Evolved 2 slots: Utility x2 24403 | -1/Access | Fabricated Quantum Shading Machine (x1) 24716 | -1/Access | Identified exit to Surface 24856 | -1/Access | Build established: Hacker-Scout 24897 | *** | Escaped! Last Messages --------------- 24878_ Exp. Hacking Suite destroyed. 24879_ H-88 Terminator suffers critical hit. 24879_ H-88 Terminator destroyed. 24880_ K-01 Serf collects debris. 24880_ Penetrated by Slug. 24883_ Slug penetrates Wall. 24884_ K-01 Serf collects debris. 24884_ H-88 Terminator suffers critical hit. 24884_ Destroyed Hvy. Machine Gun. 24886_ Penetrated by Slug. 24886_ Adv. Heat Sink destroyed. 24886_ Slug penetrates Wall. 24886_ Destroyed Lgt. Quantum Reactor. 24888_ H-88 Terminator destroyed. 24888_ K-01 Serf collects debris. 24894_ Connecting with Terminal... >>Open Sealed Barrier opened. 24895_ The Access Shell folds into the floor. [Achievement: Epsilon Run] Map ----- +----------------------------------------------------+ | ########## = ############## ?# "??"????????? | | ####?#####=!=! "" # ""?""???????? | | ##########||*%= T" + """????????? | | ####?#####==![###+#+######?# # ? ??????? | | ###########%!## ###### # ? ??????? | | """T""" #**## #####?##+############??????? | | """ """ #!!## ## ######??????? | | +%!## ## ? #######?????? | | #[!## ## """""" ####?#??????? | | #!=## ## """""" #?#?#??#????? | | #* ## ! ## """""" ###### ?????? | | # ## ## """""" ###### ????? | | ##"######## ## ## """""" ###### ????? | | #"#########! ## ## ##??##? ????? | | "#########![## ## ##??## ? ???? | | ##########[%########### ? ####?? ????? | | # ##%!########### ######??????? | | # ##[[############?#############?###??????? | | # ##==#?########################?##? ?????? | | # ## ####### ###################### ????? | | # ## """T""" """" ? ? ## ?????? | | # ## """ """ """" BB #? ?????? | | # " ## """" BB ?##??????? | | / "" ?## """" ? ? ?????? | | + "" ## "" """" ??????? | | # "" ## @" """" ???????? | | # "" ## """" ? ?? ???????? | | + "" ## "?"? BB #???????? | | # "" ## """" BB ?????????? | | # " ## """"? ?????????? | | # ?## ####### ##############?###??????????? | | + ## ?###########?####?#######???????????? | | # ? ## ##########?###?########???????g?????? | | ########## #######?##### """?""?????????g?????? | | ####??#### #######?##### "?""?"??????????????? | | ##?####?## ###?######### ? ?????????????????? | | ###?####?# #####?####### ? ???????????????????? | | #??#?#?#?# w######?####?? ?????????????????????? | | ##?##??#?#? ? ? ???????????????????????????????? | | #????#?#????????????????????????????????????????? | | #???###?????? ?????????????????????????????????? | | # ???????? ? ?????????????????????????????????? | | # ? ???? ?? +???????????????????????????????????? | | #????? ? #? ??? ????????????????????????????????? | | #??? ? ?? #? ?????????????????????????????????? | | #????"????? #? ? ???????????????????????????????? | | # "? ??#??#?##???????#??????????? ????????????? | | #? "?"? # ##???#?????????????#?#??????????????? | | #????"? ?#? #?#??#?????????#??#???#?????????????? | | ##??"?"???+ ???#???#?#??#????????????????????????? | +----------------------------------------------------+ Best States ------------- Heat Dissipation 75 Coolant Potential 65 Energy Generation 38 Energy Capacity 760 Matter Stores 300 Matter Capacity 300 Sight Range 22 Terrain Scan Range 24 Terrain Scan Density 210 ECM Strength 3 Cloak Strength 3 Additional Mass Support 20 Base Temperature (-) 100 Armor Coverage 825 Resistance: TH 15 Propulsion Shielding 90 Weapon Shielding 90 Melee Speed Boost 50 Evasion (%) 73 Targeting Accuracy 5 Melee Accuracy 12 Recoil Reduction 4 Particle Charging 15 Force Boost 5 Offensive Hacking 56 Defensive Hacking 20 Relay Coupler Types 61 Relay Coupler Value 1 Item Schematics ----------------- Lrg. Matter Pod | -10/Materials | Hacked Med. Storage Unit | -10/Materials | Hacked Grenade Launcher | -10/Mines | Hacked System Shield | -8/Materials | Scanalyzed Hacking Suite | -7/Factory | Hacked Imp. Hacking Suite | -6/Factory | Hacked Imp. System Shield | -6/Factory | Hacked Remote Datajack | -6/Factory | Hacked Adv. Melee Analysis Suite | -6/Factory | Hacked Impulse Thruster | -6/Factory | Hacked Exp. Propulsion Shielding | -5/Factory | Hacked Adv. Hacking Suite | -5/Factory | Scanalyzed Exp. Weapon Shielding | -5/Extension | Hacked Exp. Terrain Scan Processor | -5/Extension | Hacked Adv. Actuator Array | -5/Extension | Hacked Adv. Coolant Injector | -5/Extension | Hacked Phase Gun | -5/Extension | Hacked Imp. Actuator Array | -5/Cetus | Hacked Microactuators | -5/Cetus | Hacked Q-thruster | -5/Hub_04(d) | Hacked Quantum Shading Machine | -4/Factory | Hacked Imp. Force Booster | -4/Factory | Scanalyzed Mic. Fission Core | -4/Factory | Scanalyzed Imp. Remote Datajack | -4/Factory | Scanalyzed Imp. Stasis Canceller | -4/Factory | Hacked HERF Cannon | -4/Factory | Hacked Railgun | -4/Factory | Hacked Lgt. Quantum Reactor | -3/Research | Hacked Exp. Hacking Suite | -3/Research | Hacked Exp. Melee Analysis Suite | -3/Research | Hacked Force Lance | -3/Research | Hacked Exp. System Shield | -3/Research | Hacked Nanoactuators | -3/Research | Hacked Adv. Cloaking Device | -2/Research | Hacked Adv. Armor Integrity Analyzer | -2/Research | Hacked Imp. Q-thruster | -2/Research | Scanalyzed Robot Schematics ------------------ None Fabricated ------------ Hacking Suite | x1 | -6/Factory Imp. Hacking Suite | x1 | -6/Factory Imp. Hacking Suite | x1 | -6/Factory Imp. Hacking Suite | x1 | -6/Factory Imp. System Shield | x1 | -6/Factory Remote Datajack | x1 | -6/Factory Exp. Propulsion Shielding | x1 | -5/Factory Adv. Hacking Suite | x1 | -4/Factory Adv. Hacking Suite | x1 | -4/Factory Adv. Hacking Suite | x1 | -4/Factory Exp. Weapon Shielding | x1 | -4/Factory Exp. Propulsion Shielding | x1 | -3/Research Force Lance | x1 | -2/Research Force Lance | x1 | -2/Research Nanoactuators | x2 | -2/Research Exp. Melee Analysis Suite | x1 | -2/Research Exp. Hacking Suite | x1 | -2/Research Quantum Shading Machine | x1 | -1/Access Alien Tech Used ----------------- None Achievements -------------- 404 Epsilon Run Party Time Challenges ------------ None Game ------ Seed NeutrinoXenonAutocannon Manual? 0 Play Time 05:02:12 Cumulative 104.2 hours Start 2020.10.21 @ 00:58:19 End 2020.10.23 @ 23:26:27 Sessions 8 Manual Loads 0 Difficulty Rogue Special Mode None Game No. 75 Rogue 75 Adventurer 0 Explorer 0 Win Type 0 Total 1 Types 1/0/0/0/0/0/0/0/0 Lore% 58 Gallery% 64 Achievement% 52 Wizard Run 0 Options --------- ASCII 0 Keyboard 1 Movement Numpad Keybinds 0 Fullscreen 1 Font 12/Smallcaps Map View 83x54 Tactical HUD 1 Map Filters NONE Filters NONE Steam 1 RUN: 79c78405-1f9c-40d2-9f88-cb91d7dcd6a8